Cogmind - Beta 13 --- EXPLORER MODE // 2024.06.12 @ 17:53:52 Player: Zachary Result: Self-destructed Performance ------------- Evolutions (1) 500 Regions Visited (2) 400 Robots Destroyed (5) 25 Value Destroyed (146) 146 Prototype IDs (0) 0 Alien Tech Used (0) 0 Bonus (200) 200 TOTAL SCORE: 1271 Bonus ------- Pacifist 200 Cogmind --------- Core Integrity 397/400 Matter 300/300 Energy 150/150 System Corruption 0% Temperature Warm (144) Movement Treading (160) Location -9/Materials Parts ------- > --- POWER (2) -------- Light Ion Engine Light Ion Engine > --- PROPULSION (2) --- Light Treads Light Treads > --- UTILITY (3) ------ Structural Scanner Seismic Detector > --- WEAPON (3) ------- Small Laser Small Laser Light Assault Rifle > --- INVENTORY (5) ---- Ion Engine Light Ion Engine Small Laser Peak State ------------ > --- POWER ------------ Light Ion Engine Light Ion Engine > --- PROPULSION ------- Light Treads Light Treads > --- UTILITY ---------- Structural Scanner Seismic Detector > --- WEAPON ----------- Small Laser Small Laser Small Laser > --- INVENTORY -------- Ion Engine [Rating: 9] Favorites ----------- Power Light Ion Engine Engine Light Ion Engine Propulsion Light Treads Treads Light Treads Utility Seismic Detector Device Seismic Detector Weapon Small Laser Energy Gun Small Laser Ballistic Gun Light Assault Rifle Build | -11 -10 -9 ------- Run | Yrd Mat Mat Slots Evolved 3 | . 1 2 Power 1 | . . 1 Propulsion . | . . . Utility 1 | . 1 . Weapon 1 | . . 1 Parts Attached 11 | 8 . 3 Power 3 | 2 . 1 Engine 3 | 2 . 1 Core . | . . . Reactor . | . . . Propulsion 2 | 2 . . Treads 2 | 2 . . Leg . | . . . Wheel . | . . . Hover . | . . . Flight . | . . . Utility 2 | 2 . . Device 2 | 2 . . Storage . | . . . Processor . | . . . Hackware . | . . . Protection . | . . . Artifact . | . . . Weapon 4 | 2 . 2 Energy Gun 3 | 2 . 1 Energy Cannon . | . . . Ballistic Gun 1 | . . 1 Ballistic Cannon . | . . . Launcher . | . . . Special Weapon . | . . . Impact Weapon . | . . . Slashing Weapon . | . . . Piercing Weapon . | . . . Special Melee Weapon . | . . . Unidentified Prototypes . | . . . Parts Lost . | . . . Power . | . . . Propulsion . | . . . Utility . | . . . Weapon . | . . . Highest Loss Streak . | . . . To Critical Strikes . | . . . Average Slot Usage (%) 85 | . 87 85 Engine 16 | . 12 20 Treads 21 | . 25 20 Device 21 | . 25 20 Energy Gun 24 | . 25 23 Naked Turns . | . . . Heaviest Build 11 | 8 7 11 Greatest Support 40 | 40 40 40 Greatest Overweight (x) . | . . . Average Overweight (x) . | . . . Largest Inventory Capacity 5 | 5 5 5 Average Capacity 5 | 5 5 5 Most Carried 5 | 5 2 3 Average Carried 1 | 1 1 1 Final Capacity 5 | 5 5 5 Final Carried 3 | 1 2 3 Class Distribution -------------------- 73% | Hacker-Mutant 26% | Hacker-Skirmisher Dominant Class ---------------- Hacker-Mutant | -10/Materials Hacker-Skirmisher | -9/Materials Resources | -11 -10 -9 ----------- Run | Yrd Mat Mat Matter Collected 313 | 236 44 33 Remotely . | . . . Salvage Created 157 | . . 157 Parts 9 | . . 9 Haulers Intercepted . | . . . Recyclers Shooed . | . . . Parts Field Recycled . | . . . Retrieved Matter . | . . . Parts Self-Destructed . | . . . Prevented . | . . . Kills | -11 -10 -9 ------- Run | Yrd Mat Mat Combat Hostiles Destroyed 5 | . . 5 Guns 5 | . . 5 Classes Destroyed 4 | . . 4 Swarmer 2 | . . 2 Grunt 1 | . . 1 Duelist 1 | . . 1 Sentry 1 | . . 1 Best Kill Streak 4 | . . 4 Combat Bots Only 4 | . . 4 Max Kills in Single Turn 1 | . . 1 Gunslinging . | . . . Exploded . | . . . Melee . | . . . Uniques/NPCs Destroyed . | . . . Combat | -11 -10 -9 -------- Run | Yrd Mat Mat Hostile Shots Fired 43 | . . 43 Missed 14 | . . 14 Damage Taken 168 | . . 168 Core 3 | . . 3 Absorbed by Shields . | . . . Ignored by Resistances 115 | . . 115 Core Remaining (%) 100 | 100 100 . Volleys Fired 15 | . 1 14 Largest 3 | . 2 3 Hottest 120 | . 80 120 Shots Fired 39 | . 2 37 Gun 39 | . 2 37 Cannon . | . . . Launcher . | . . . Special . | . . . Kinetic 3 | . . 3 Thermal 36 | . 2 34 Explosive . | . . . Electromagnetic . | . . . Robot Hit Streak 21 | . . 21 Robot Miss Streak 1 | . . 1 Penetration Max . | . . . Secondary Targets 1 | . . 1 Max Gunslinging Chain 1 | . . 1 Shots Hit Robots 30 | . . 30 Core Hits 12 | . . 12 Critical Kills . | . . . Critical Parts Destroyed . | . . . Critical Strikes . | . . . Melee Attacks . | . . . Impact . | . . . Slashing . | . . . Piercing . | . . . Sneak Attacks . | . . . Combat Hostiles . | . . . Follow-up Attacks . | . . . Damage Inflicted 310 | . . 310 Guns 310 | . . 310 Cannons . | . . . Explosions . | . . . Melee . | . . . Ramming . | . . . Kinetic 20 | . . 20 Thermal 290 | . . 290 Explosive . | . . . Electromagnetic . | . . . Impact . | . . . Slashing . | . . . Piercing . | . . . Highest Corruption . | . . . Average Corruption . | . . . Corruption Purged . | . . . Corruption Blocked . | . . . Overload Shots . | . . . Overflow Damage . | . . . Projectiles . | . . . Explosions . | . . . Melee . | . . . Knockbacks . | . . . Impact . | . . . Kinetic . | . . . Secondary . | . . . Self-Inflicted Damage . | . . . Shots . | . . . Rammed . | . . . Targets Rammed . | . . . Kicked . | . . . Crushed . | . . . Highest Temperature 204 | . 18 204 Average Temperature 77 | . 12 79 Received Heat Transfer 54 | . . 54 Effects 1 | . . 1 Energy Bleed 1 | . . 1 Siege Activations . | . . . Robots Corrupted . | . . . Combat Hostiles . | . . . Parts Fried . | . . . Impact Corruptions . | . . . Robots Melted . | . . . Combat Hostiles . | . . . Parts Melted . | . . . Heat Transferred 675 | . . 675 Parts Sabotaged . | . . . Parts Stolen . | . . . Parts Stripped . | . . . Power Chain Reactions . | . . . Alert | -11 -10 -9 ------- Run | Yrd Mat Mat Peak Influence 160 | . . 160 Initial . | . . . Average 38 | . . 79 Maximum Alert Level . | . . . Low Security (%) 100 | 100 100 100 Level 1 . | . . . Level 2 . | . . . Level 3 . | . . . Level 4 . | . . . Level 5 . | . . . High Security . | . . . Max Security . | . . . Squads Dispatched 1 | . . 1 Investigation . | . . . Extermination . | . . . Reinforcement 1 | . . 1 Assault . | . . . Garrison . | . . . Intercept . | . . . Searches Triggered . | . . . Construction Impeded . | . . . Haulers Reinforced . | . . . Active Scanning Responses . | . . . Cargo Convoy Interrupts . | . . . Stealth | -11 -10 -9 --------- Run | Yrd Mat Mat Distress Signals . | . . . Communications Jammed . | . . . Distress Signals . | . . . Times Spotted 11 | . . 11 Peak Tracking Total 4 | . . 4 Tactical Retreats . | . . . Traps | -11 -10 -9 ------- Run | Yrd Mat Mat Traps Triggered . | . . . Indirectly . | . . . Trap Hack Attempts . | . . . Triggered . | . . . Disarmed . | . . . Reprogrammed . | . . . Reused . | . . . Traps Extracted . | . . . Installed . | . . . Triggered . | . . . Machines | -11 -10 -9 ---------- Run | Yrd Mat Mat Machines Disabled . | . . . Max in Single Turn . | . . . Machines Repaired . | . . . Machines Dismantled . | . . . Machines Sabotaged . | . . . Overloaded Fab Kills . | . . . Hacking | -11 -10 -9 --------- Run | Yrd Mat Mat Machines Accessed . | . . . Terminals . | . . . Fabricators . | . . . Repair Stations . | . . . Recycling Units . | . . . Scanalyzers . | . . . Garrison Access . | . . . Total Hacks . | . . . Successful . | . . . Failed . | . . . Catastrophic . | . . . Database Lockouts . | . . . Manual . | . . . Terminals . | . . . Fabricators . | . . . Repair Stations . | . . . Recycling Units . | . . . Scanalyzers . | . . . Garrison Access . | . . . Terminal Hacks . | . . . Fabricator Hacks . | . . . Repair Station Hacks . | . . . Recycling Unit Hacks . | . . . Scanalyzer . | . . . Garrison Access Hacks . | . . . Unauthorized Hacks . | . . . Terminals . | . . . Fabricators . | . . . Repair Stations . | . . . Recycling Units . | . . . Scanalyzers . | . . . Garrison Access . | . . . Data Cores Recovered . | . . . Used . | . . . Hacking Detections . | . . . Full Trace Events . | . . . Feedback Events . | . . . Feedback Blocked . | . . . Robot Schematics Acquired . | . . . Robots Built . | . . . Authchips . | . . . Time . | . . . Total Robot Build Rating . | . . . Part Schematics Acquired . | . . . Parts Built . | . . . Authchips . | . . . Time . | . . . Total Part Build Rating . | . . . Parts Repaired . | . . . Time . | . . . Parts Recycled . | . . . Recycled Matter . | . . . Retrieved Matter . | . . . Retrieved Components . | . . . Parts Scanalyzed . | . . . Part Schematics Acquired . | . . . Parts Damaged . | . . . Bothacking | -11 -10 -9 ------------ Run | Yrd Mat Mat Used RIF Installer . | . . . Robots Hacked . | . . . Non-combat . | . . . Combat . | . . . Robot Hacks Applied . | . . . Relay Couplers Released . | . . . Fabnet Peak Effective % . | . . . Robots Rewired . | . . . Allies Hacked . | . . . Hacks Repelled . | . . . Allies | -11 -10 -9 -------- Run | Yrd Mat Mat Total Allies . | . . . Largest Group . | . . . Highest-Rated Group . | . . . Highest-Rated Ally . | . . . Total Orders . | . . . Ally Attacks . | . . . Total Damage . | . . . Kills . | . . . Allies Corrupted . | . . . Allies Melted . | . . . Intel | -11 -10 -9 ------- Run | Yrd Mat Mat Robot Analysis Total . | . . . Derelict Logs Recovered . | . . . Drone Launches . | . . . Drone Recoveries . | . . . Exploration | -11 -10 -9 ------------- Run | Yrd Mat Mat Turns Passed 287 | 57 91 139 Spaces Moved 147 | 37 55 55 Core 16 | 16 . . Treads 131 | 21 55 55 Legs . | . . . Wheels . | . . . Hover . | . . . Flight . | . . . Fastest Speed 50 | 50 160 160 Average Speed 148 | 112 160 160 Slowest Speed 160 | 160 160 160 Overloaded Moves . | . . . Propulsion Burnouts . | . . . Robots Hopped . | . . . Cave-ins Triggered . | . . . Exploration Rate (%) 10 | 3 19 9 Regions Visited 2 Branch Regions . Pre-discovered Areas . | . . . Known Exits Taken 2 | 1 1 . Unknown Exits Taken . | . . . Scrap Searched . | . . . Spaces Dug . | . . . Terrain Destroyed . | . . . Melee . | . . . Projectile . | . . . AOE . | . . . Terrain Rammed . | . . . Walls Destroyed . | . . . Machines Disabled . | . . . Actions | -11 -10 -9 --------- Run | Yrd Mat Mat Total 185 | 53 56 76 Wait . | . . . Move 145 | 36 54 55 Hop . | . . . Pick Up 12 | 8 1 3 Fast Attach . | . . . Attach 11 | 8 . 3 Detach 2 | 1 . 1 Swap . | . . . Drop . | . . . Fire 15 | . 1 14 Melee . | . . . Ram . | . . . Kick . | . . . Crush . | . . . Escape Stasis . | . . . Rewire . | . . . Trap . | . . . Miscellaneous . | . . . Route ------- -11/Scrapyard -10/Materials -9/Materials (discovered 1 exit: *Min) History --------- Turn | Location | Event 7 | -11/Scrapyard | Identified exit to Materials 7 | -11/Scrapyard | Discovered exit to Materials (range 16) 58 | -11/Scrapyard | Entered Materials 58 | -10/Materials | Evolved 1 slot: Utility x1 138 | -10/Materials | Identified exit to Materials 138 | -10/Materials | Discovered exit to Materials (range 5) 149 | -10/Materials | Entered another Materials area 149 | -9/Materials | Evolved 2 slots: Power x1, Weapon x1 238 | -9/Materials | Identified exit to Mines 238 | -9/Materials | Discovered exit to Mines (range 15) 288 | -9/Materials | Self-destructed Last Messages --------------- 00170_ ALERT: Hostiles spotted, dispatching reinforcements to Terminal M007. 00179_ Acquired 10 matter. 00195_ L-31 Rogue destroyed. 00195_ Switching to secondary target: G-34 Mercenary. 00201_ G-34 Mercenary destroyed. 00212_ Acquired Sml. Laser. 00214_ S-10 Pest destroyed. 00221_ G-34 Mercenary destroyed. 00223_ Overheating: Energy bleed (-34). 00227_ S-10 Pest destroyed. 00238_ EXIT=FOUND: MINES 00240_ Acquired 10 matter. 00244_ Acquired Lgt. Ion Engine. 00254_ Y-45 Defender destroyed. 00262_ Acquired Lgt. Assault Rifle. 00264_ Acquired 10 matter. 00279_ Acquired 1 matter. 00287_ Critical hit (Burn: +37). Map ----- +----------------------------------------------------+ | ???????????????????????????????????????????? | | ???????????????????????????????????????????? | | ???????????????????????????????????????????? | | ???????????????????????????????????????????? | | ???????????????????????????????????????????? | | ???????????????????????????????????????????? | | ???????????????????????????????????????????? | | ???????????????????????????????????????????? | | ??????????????????????????????????###??????? | | ??????????????????????????????????#####????? | | ??????????????????????????= ??????"""####??? | | ?????????????????????????? "?????!!!"###??? | | ?????????????????????^????ssY????? ""##??? | | ???????????????????? ? ""## ##??? | | ????????????????????? "T" #### > ##??? | | ?????????????????????? """s # # ##??? | | ?????????????????????? # # ##??? | | ?????????????????????? k # ## ##???? | | ??????????????????????## ## ### ###???? | | ??????????????????????## ## ##????? | | ??????????????????????## ## ##????? | | ?????????????????????### ## " ###???? | | ????????????????????? ## ## T ###???? | | ????????????????????? # # " ##???? | | ????????????????????? # %= ##???? | | ????????????????????? + =@[ ##???? | | ????????????????????? # Y ##???? | | ????????????????????? # #####!=* ##???? | | ????????????????????? ############%% ###???? | | ????????????????????? ########?### = ###???? | | ????????????????????????????????## ##????? | | ????????????????????????????????## ##????? | | ???????????????????????????????? # ##????? | | ???????????????????????????????? # ##????? | | ???????????????????????????????? # ##????? | | ???????????????????????????????? + ##????? | | ???????????????????????????????? #! ##????? | | ??????????????????## #% # ????? | | ??????????????????################/ # ????? | | ??????????????????## # # ????? | | ??????????????????## """ """ """ # + ????? | | ??????????????????## """ """ """ + # ????? | | ??????????????????## """ """ """ # # ????? | | ??????????????????## # ### ????? | | ??????????????????## / % # ####????? | | ??????????????????#######+######## ##??????? | | ??????????????????####### ######## ##??????? | | ????????????????????? ### ######## ##??????? | | ????????????????????? # ###### ##??????? | | ????????????????????? # ##??????? | +----------------------------------------------------+ Best States ------------- Heat Dissipation 28 Energy Generation 15 Energy Capacity 250 Matter Stores 300 Matter Capacity 300 Sight Range 16 Terrain Scan Density 10 Resistance: KI 35 Resistance: TH 35 Resistance: EX 35 Resistance: EM 35 Resistance: I 35 Resistance: S 35 Resistance: P 35 Evasion (%) 40 Recoil Reduction 2 Offensive Hacking 20 Item Schematics ----------------- None Robot Schematics ------------------ None Fabricated ------------ Nothing Alien Tech Used ----------------- None Achievements -------------- None Challenges ------------ None Game ------ Seed SkeletonAerolevWings Manual? 0 Play Time 00:05:46 Cumulative 1.6 hours Start 2024.06.11 @ 19:37:37 End 2024.06.12 @ 17:53:52 Sessions 3 Manual Loads 0 Difficulty Explorer Special Mode None Game No. 12 Rogue 0 Adventurer 0 Explorer 12 Win Type - Total 0 Types 0/0/0/0/0/0/0/0/0 Lore% 1 Gallery% 8 Achievement% 6 Wizard Run 0 Options --------- Layout 1 ASCII 0 Keyboard 0 Movement Mouse Keybinds 0 Fullscreen 0 Font 36/Smallcaps Map View 50x35 Zoom Use 0% Tactical HUD 1 Map Filters NONE Filters NONE Steam 1 RUN: 307441bb-fdf1-4646-a4e2-fe394c174eb5